Cogmind - Beta 14 @@@ ROGUE MODE // 2024.10.18 @ 16:38:29 Player: Enathri Result: Destroyed by G-34 Mercenary with Small Laser Performance ------------- Evolutions (1) 500 Regions Visited (3) 600 Robots Destroyed (4) 20 Value Destroyed (171) 171 Prototype IDs (0) 0 Alien Tech Used (0) 0 Bonus (0) 0 TOTAL SCORE: 1291 Bonus ------- None Cogmind --------- Core Integrity 0/400 Matter 257/300 Energy 100/100 System Corruption 6% Temperature Cool (12) Movement Core (100) Ox1 Location -9/Storage Parts ------- > --- POWER (1) -------- (None) > --- PROPULSION (3) --- (None) > --- UTILITY (2) ------ Small Storage Unit Improved Targeting Computer > --- WEAPON (3) ------- (None) > --- INVENTORY (8) ---- Light Treads Improved Treads Cooling System Weight Redist. System Sensor Array Peak State ------------ > --- POWER ------------ Ion Engine > --- PROPULSION ------- Light Treads Light Treads Improved Treads > --- UTILITY ---------- Small Storage Unit Light Armor Plating > --- WEAPON ----------- EM Shotgun Small Laser Light Assault Rifle > --- INVENTORY -------- Light Ion Engine Aluminum Leg Aluminum Leg Cooling System Weight Redist. System Sensor Array Improved Targeting Computer [Rating: 12] Favorites ----------- Power Ion Engine Engine Ion Engine Propulsion Aluminum Leg Treads Light Treads Leg Aluminum Leg Utility Small Storage Unit Device Weight Redist. System Storage Small Storage Unit Processor Improved Targeting Computer Protection Light Armor Plating Weapon Light Assault Rifle Energy Gun Small Laser Ballistic Gun Light Assault Rifle Build | -11 -10 -9 -9 ------- Run | Yrd Mat Mat Sto Slots Evolved 2 | . . 2 . Power . | . . . . Propulsion 1 | . . 1 . Utility . | . . . . Weapon 1 | . . 1 . Parts Attached 18 | 6 1 7 4 Power 2 | 1 . . 1 Engine 2 | 1 . . 1 Core . | . . . . Reactor . | . . . . Propulsion 8 | 2 . 4 2 Treads 3 | . . 3 . Leg 5 | 2 . 1 2 Wheel . | . . . . Hover . | . . . . Flight . | . . . . Utility 4 | 1 1 1 1 Device 1 | . 1 . . Storage 1 | 1 . . . Processor 1 | . . . 1 Hackware . | . . . . Protection 1 | . . 1 . Artifact . | . . . . Weapon 4 | 2 . 2 . Energy Gun 2 | . . 2 . Energy Cannon . | . . . . Ballistic Gun 2 | 2 . . . Ballistic Cannon . | . . . . Launcher . | . . . . Special Weapon . | . . . . Impact Weapon . | . . . . Slashing Weapon . | . . . . Piercing Weapon . | . . . . Special Melee Weapon . | . . . . Unidentified Prototypes . | . . . . Parts Lost 9 | . . 6 3 Power 2 | . . 1 1 Propulsion 3 | . . 1 2 Utility . | . . . . Weapon 4 | . . 4 . Highest Loss Streak 5 | . . 5 2 To Critical Strikes . | . . . . Average Slot Usage (%) 76 | . 95 87 47 Engine 9 | . 14 10 5 Treads 12 | . . 20 12 Leg 11 | . 28 4 7 Device 3 | . 9 2 . Storage 11 | . 14 11 11 Processor 3 | . . . 10 Protection 3 | . . 7 . Energy Gun 6 | . . 14 . Ballistic Gun 14 | . 28 17 . Peak Build Rating 12 | 6 8 12 7 Average Rating 7 | 4 7 10 5 On Entrance 4 | . 6 8 5 Naked Turns . | . . . . Heaviest Build 18 | 12 12 18 8 Greatest Support 63 | 20 26 63 43 Greatest Overweight (x) 1 | . . 1 1 Average Overweight (x) . | . . . . Largest Inventory Capacity 8 | 8 8 8 8 Average Capacity 7 | 6 8 8 8 Most Carried 8 | 2 5 8 6 Average Carried 5 | 1 3 6 5 Final Capacity 8 | 8 8 8 8 Final Carried 7 | 2 5 7 5 Class Distribution -------------------- 63% | Mutant 26% | Tank 9% | Gunner Dominant Class ---------------- Mutant | -10/Materials Tank | -9/Materials Mutant | -9/Storage Resources | -11 -10 -9 -9 ----------- Run | Yrd Mat Mat Sto Matter Collected 369 | 240 46 83 . Remotely . | . . . . Salvage Created 186 | . 81 105 . Parts 13 | . 3 10 . Haulers Intercepted . | . . . . Recyclers Shooed . | . . . . Parts Field Recycled . | . . . . Retrieved Matter . | . . . . Parts Self-Destructed . | . . . . Prevented . | . . . . Kills | -11 -10 -9 -9 ------- Run | Yrd Mat Mat Sto Combat Hostiles Destroyed 4 | . 2 2 . Guns 4 | . 2 2 . Classes Destroyed 2 | . 1 1 . Grunt 2 | . 2 . . Sentry 2 | . . 2 . Best Kill Streak 2 | . 2 1 . Combat Bots Only 2 | . 2 1 . Max Kills in Single Turn 1 | . 1 1 . Gunslinging . | . . . . Exploded . | . . . . Melee . | . . . . Uniques/NPCs Destroyed . | . . . . Combat | -11 -10 -9 -9 -------- Run | Yrd Mat Mat Sto Hostile Shots Fired 178 | . 22 89 67 Missed 62 | . 6 30 26 Damage Taken 1466 | . 207 683 576 Core 422 | . 17 116 289 Absorbed by Shields . | . . . . Core Remaining (%) 96 | 100 93 . . Volleys Fired 19 | . 9 10 . Largest 3 | . 2 3 . Hottest 105 | . 40 105 . Shots Fired 48 | . 18 30 . Gun 48 | . 18 30 . Cannon . | . . . . Launcher . | . . . . Special . | . . . . Kinetic 34 | . 18 16 . Thermal 10 | . . 10 . Explosive . | . . . . Electromagnetic 4 | . . 4 . Robot Hit Streak 6 | . 6 4 . Robot Miss Streak 3 | . 2 3 . Penetration Max . | . . . . Secondary Targets 1 | . 1 . . Max Gunslinging Chain 1 | . 1 . . Shots Hit Robots 27 | . 11 16 . Core Hits 14 | . 6 8 . Critical Kills . | . . . . Critical Parts Destroyed . | . . . . Critical Strikes . | . . . . Melee Attacks . | . . . . Impact . | . . . . Slashing . | . . . . Piercing . | . . . . Sneak Attacks . | . . . . Combat Hostiles . | . . . . Follow-up Attacks . | . . . . Damage Inflicted 275 | . 98 177 . Guns 275 | . 98 177 . Cannons . | . . . . Explosions . | . . . . Melee . | . . . . Ramming . | . . . . Kinetic 168 | . 98 70 . Thermal 46 | . . 46 . Explosive . | . . . . Electromagnetic 61 | . . 61 . Impact . | . . . . Slashing . | . . . . Piercing . | . . . . Highest Corruption 6 | . . 6 6 Average Corruption 5 | . . 5 6 Corruption Purged . | . . . . Corruption Blocked . | . . . . Effects 14 | . . 9 5 Message Errors 3 | . . 3 . Matter Fused 5 | . . 3 2 Heat Flow Errors 2 | . . 1 1 Energy Discharges 2 | . . 1 1 Parts Rejected 1 | . . 1 . Data Loss (minor) 1 | . . . 1 Overload Shots . | . . . . Overflow Damage . | . . . . Projectiles . | . . . . Explosions . | . . . . Melee . | . . . . Knockbacks . | . . . . Impact . | . . . . Kinetic . | . . . . Secondary . | . . . . Self-Inflicted Damage . | . . . . Shots . | . . . . Rammed . | . . . . Targets Rammed . | . . . . Kicked . | . . . . Crushed . | . . . . Highest Temperature 254 | . 43 112 254 Average Temperature 49 | . 25 38 135 Received Heat Transfer 543 | . 126 258 159 Siege Activations . | . . . . Robots Corrupted . | . . . . Combat Hostiles . | . . . . Parts Fried . | . . . . Impact Corruptions . | . . . . Robots Melted . | . . . . Combat Hostiles . | . . . . Parts Melted . | . . . . Heat Transferred 100 | . . 100 . Parts Sabotaged . | . . . . Parts Stolen . | . . . . Parts Stripped . | . . . . Power Chain Reactions . | . . . . Alert | -11 -10 -9 -9 ------- Run | Yrd Mat Mat Sto Peak Influence 149 | . 95 149 91 Initial 41 | . . 39 41 Average 66 | . 21 100 75 Maximum Alert Level . | . . . . Low Security (%) 100 | 100 100 100 100 Level 1 . | . . . . Level 2 . | . . . . Level 3 . | . . . . Level 4 . | . . . . Level 5 . | . . . . High Security . | . . . . Max Security . | . . . . Squads Dispatched . | . . . . Investigation . | . . . . Extermination . | . . . . Reinforcement . | . . . . Assault . | . . . . Garrison . | . . . . Intercept . | . . . . Searches Triggered . | . . . . Construction Impeded . | . . . . Haulers Reinforced . | . . . . Active Scanning Responses . | . . . . Cargo Convoy Interrupts . | . . . . Stealth | -11 -10 -9 -9 --------- Run | Yrd Mat Mat Sto Distress Signals 4 | . 1 1 2 Communications Jammed . | . . . . Distress Signals . | . . . . Times Spotted 34 | . 8 12 14 Peak Tracking Total 13 | . 4 7 13 Tactical Retreats 2 | . 1 . 1 Traps | -11 -10 -9 -9 ------- Run | Yrd Mat Mat Sto Traps Triggered 4 | . . 4 . Indirectly . | . . . . Trap Hack Attempts . | . . . . Triggered . | . . . . Disarmed . | . . . . Reprogrammed . | . . . . Reused . | . . . . Traps Extracted . | . . . . Installed . | . . . . Triggered . | . . . . Machines | -11 -10 -9 -9 ---------- Run | Yrd Mat Mat Sto Machines Disabled . | . . . . Max in Single Turn . | . . . . Machines Repaired . | . . . . Machines Dismantled . | . . . . Machines Sabotaged . | . . . . Overloaded Fab Kills . | . . . . Hacking | -11 -10 -9 -9 --------- Run | Yrd Mat Mat Sto Machines Accessed 5 | . 1 4 . Terminals 4 | . 1 3 . Fabricators . | . . . . Repair Stations . | . . . . Recycling Units . | . . . . Scanalyzers 1 | . . 1 . Garrison Access . | . . . . Total Hacks 10 | . 2 8 . Successful 6 | . . 6 . Failed 4 | . 2 2 . Catastrophic 1 | . 1 . . Database Lockouts . | . . . . Manual . | . . . . Terminals 7 | . 2 5 . Fabricators . | . . . . Repair Stations . | . . . . Recycling Units . | . . . . Scanalyzers 3 | . . 3 . Garrison Access . | . . . . Terminal Hacks 3 | . . 3 . Record 3 | . . 3 . Fabricator Hacks . | . . . . Repair Station Hacks . | . . . . Recycling Unit Hacks . | . . . . Scanalyzer 3 | . . 3 . Insert Component 2 | . . 2 . Analyze 1 | . . 1 . Garrison Access Hacks . | . . . . Unauthorized Hacks . | . . . . Terminals . | . . . . Fabricators . | . . . . Repair Stations . | . . . . Recycling Units . | . . . . Scanalyzers . | . . . . Garrison Access . | . . . . Data Cores Recovered . | . . . . Used . | . . . . Hacking Detections 5 | . 1 4 . Full Trace Events . | . . . . Feedback Events . | . . . . Feedback Blocked . | . . . . Robot Schematics Acquired . | . . . . Robots Built . | . . . . Authchips . | . . . . Time . | . . . . Total Robot Build Rating . | . . . . Part Schematics Acquired 1 | . . 1 . Parts Built . | . . . . Authchips . | . . . . Time . | . . . . Total Part Build Rating . | . . . . Parts Repaired . | . . . . Time . | . . . . Parts Recycled . | . . . . Recycled Matter . | . . . . Retrieved Matter . | . . . . Retrieved Components . | . . . . Parts Scanalyzed 1 | . . 1 . Part Schematics Acquired 1 | . . 1 . Parts Damaged . | . . . . Bothacking | -11 -10 -9 -9 ------------ Run | Yrd Mat Mat Sto Used RIF Installer . | . . . . Robots Hacked . | . . . . Non-combat . | . . . . Combat . | . . . . Robot Hacks Applied . | . . . . Relay Couplers Released . | . . . . Fabnet Peak Effective % . | . . . . Robots Rewired . | . . . . Allies Hacked . | . . . . Hacks Repelled . | . . . . Allies | -11 -10 -9 -9 -------- Run | Yrd Mat Mat Sto Total Allies . | . . . . Largest Group . | . . . . Highest-Rated Group . | . . . . Highest-Rated Ally . | . . . . Total Orders . | . . . . Ally Attacks . | . . . . Total Damage . | . . . . Kills . | . . . . Allies Corrupted . | . . . . Allies Melted . | . . . . Intel | -11 -10 -9 -9 ------- Run | Yrd Mat Mat Sto Robot Analysis Total . | . . . . Derelict Logs Recovered . | . . . . Drone Launches . | . . . . Drone Recoveries . | . . . . Exploration | -11 -10 -9 -9 ------------- Run | Yrd Mat Mat Sto Turns Passed 830 | 67 189 319 255 Spaces Moved 521 | 48 122 174 177 Core 15 | 2 . 1 12 Treads 222 | . . 137 85 Legs 284 | 46 122 36 80 Wheels . | . . . . Hover . | . . . . Flight . | . . . . Fastest Speed 50 | 50 120 100 100 Average Speed 136 | 117 120 151 137 Slowest Speed 160 | 120 120 160 160 Overloaded Moves . | . . . . Propulsion Burnouts . | . . . . Robots Hopped . | . . . . Cave-ins Triggered . | . . . . Exploration Rate (%) 22 | 4 27 22 35 Regions Visited 3 Branch Regions 1 Pre-discovered Areas . | . . . . Known Exits Taken . | . . . . Unknown Exits Taken 3 | 1 1 1 . Scrap Searched . | . . . . Spaces Dug . | . . . . Terrain Destroyed . | . . . . Melee . | . . . . Projectile . | . . . . AOE . | . . . . Terrain Rammed . | . . . . Walls Destroyed . | . . . . Machines Disabled . | . . . . Actions | -11 -10 -9 -9 --------- Run | Yrd Mat Mat Sto Total 605 | 56 149 211 189 Wait 36 | . 15 15 6 Move 518 | 47 121 173 177 Hop . | . . . . Pick Up 8 | 3 3 2 . Fast Attach 9 | 5 1 3 . Attach 9 | 1 . 4 4 Detach 6 | . . 4 2 Swap . | . . . . Drop . | . . . . Fire 19 | . 9 10 . Melee . | . . . . Ram . | . . . . Kick . | . . . . Crush . | . . . . Escape Stasis . | . . . . Rewire . | . . . . Trap . | . . . . Miscellaneous . | . . . . Route ------- -11/Scrapyard -10/Materials -9/Materials -9/Storage History --------- Turn | Location | Event 40 | -11/Scrapyard | Discovered new exit (range 16) 68 | -11/Scrapyard | Entered Materials 152 | -10/Materials | Discovered new exit (range 16) 257 | -10/Materials | Entered another Materials area 257 | -9/Materials | Evolved 2 slots: Propulsion x1, Weapon x1 546 | -9/Materials | Discovered new exit (range 16) 576 | -9/Materials | Entered Storage 600 | -9/Storage | Lost 5 parts (1p1n3w) 740 | -9/Storage | Core integrity fell below 50% 818 | -9/Storage | Core integrity fell below 20% 831 | -9/Storage | Destroyed by G-34 Mercenary with Small Laser Last Messages --------------- 00564_ S-10 Pest destroyed. 00567_ Sml. Laser destroyed. 00567_ Lgt. Assault Rifle destroyed. 00568_ System corrupted: Matter fused (-6). 00568_ R-06 Scavenger collects Med. Matter Pod. 00569_ Lgt. Treads destroyed. 00570_ S-10 Pest destroyed. 00571_ R-06 Scavenger collects Lgt. Ion Engine. 00574_ R-06 Scavenger collects Flight Unit. LOCATION=UNKNOWN GOAL=ESCAPE 00583_ System corrupted: Heat flow error (+277). 00650_ System corrupted: Matter fused (-7). 00690_ System corrupted: Matter fused (-10). 00701_ Lgt. Ion Engine destroyed. 00717_ System corrupted: Component data lost. 00746_ System corrupted: Energy discharge (-35). 00760_ W-16 Scout sends out distress signal. 00811_ Aluminum Leg destroyed. Map ----- +----------------------------------------------------+ | ???# # """ """ "" ## "??"" #?? ???? | | ???# + ##### "???"" #?? ???? | | ???# # #???# ""???" #?? ???? | | ???# # #???# ""??" #?? ???? | | ???# + #???# """" #?? ???? | | ???# ######### #???# #?? ???? | | ???# #???????###???###/#######?? ???? | | ???# #### #???????# #???????????? | | ???# ??????????? | | ???# ###### #?????### ###?????????? | | ???# #????????????????##+##???????????? | | ???# #?????????????????? #????????????? | | ##?# #?????????????????? #????????????? | | ### #?????????????????? #????????????? | | + #??????????????????? ????????????? | | #####???????????????????#????????????? | | #???????????????#????????????????????? | | #?????????????? #????????????????????? | | #????????????? #????????????????????? | | #??????????""" #????????????????????? | | #?????????? ??????????????????????? | | #???########+###?????????????????????? | | ######"T"## #####+#+###???????????? | | g #???????????? | | T +???????????? | | gag @#???????????? | | ########### #####+##+##???????????? | | ???????######+###### #????????????? | | ???????# # """ #????????????? | | ???????# # """ #????????????? | | ???????# """ """ # """ #????????????? | | ???????# """ """ # #????????????? | | ???????# """ """ # """ #????????????? | | ???????# # """ #????????????? | | ???????# # ??" #????????????? | | ????????############ ?? ?????????????? | | ???????????????????##??+#?????????????? | | ??????????????????????????????????????? | | ??????????????????????????????????????? | | ??????????????????????????????????????? | | ??????????????????????????????????????? | | ??????????????????????????????????????? | | ??????????????????????????????????????? | | ??????????????????????????????????????? | | ??????????????????????????????????????? | | ??????????????????????????????????????? | | ??????????????????????????????????????? | | ??????????????????????????????????????? | | | | | +----------------------------------------------------+ Best States ------------- Heat Dissipation 28 Energy Generation 10 Energy Capacity 250 Matter Stores 300 Matter Capacity 300 Sight Range 16 Terrain Scan Density 10 Additional Mass Support 6 Armor Coverage 150 Evasion (%) 55 Targeting Accuracy 6 Recoil Reduction 3 Item Schematics ----------------- Weight Redist. System | -9/Materials | Scanalyzed Robot Schematics ------------------ None Fabricated ------------ Nothing Alien Tech Used ----------------- None Achievements -------------- None Challenges ------------ None Game ------ Seed LatentJunkTreads Manual? 0 Play Time 00:15:13 Cumulative 7.4 hours Start 2024.10.18 @ 15:45:18 End 2024.10.18 @ 16:38:29 Sessions 1 Manual Loads 0 Difficulty Rogue Special Mode None Game No. 11 Rogue 11 Adventurer 0 Explorer 0 Win Type - Total 0 Types 0/0/0/0/0/0/0/0/0 Lore% 2 Gallery% 10 Achievement% 9 Wizard Run 0 Options --------- Layout 1 ASCII 0 Keyboard 1 Movement Numpad Keybinds 0 Fullscreen 1 Font 24/Smallcaps Map View 50x35 Zoom Use 0% Tactical HUD 1 Map Filters NONE Filters NONE Steam 1 RUN: 941ef0aa-706e-4d55-b77e-6c5f3437448d